fUSD/lending_fUSD_20260123
["ID","MTS","AMOUNT","RATE_DAILY","PERIOD"]
[403088664,1769145042721,-1515.34971137,0.00016468,2]
[403088667,1769145042733,-513.55704022,0.00016468,2]
[403088669,1769145042742,-500.0,0.00016493,2]
[403088670,1769145042753,-4695.48318935,0.00016496,2]
[403088673,1769145042762,-384.83,0.00016497,2]
[403088674,1769145042771,-232.64480587,0.00016502,2]
[403088677,1769145042781,-4040.68910356,0.00016505,2]
[403088678,1769145042790,-7128.25453686,0.00016505,2]
[403088681,1769145042800,-10663.44247424,0.00016505,2]
[403088683,1769145042809,-14428.0125,0.00016505,2]
[403088684,1769145042818,-1064.0,0.00016507,2]
[403088687,1769145042827,-500.0,0.00016512,5]
[403088689,1769145042837,-1064.0,0.00016514,2]
[403088691,1769145042847,-374.03,0.00016515,2]
[403088693,1769145042856,-384.83,0.00016538,2]
[403088695,1769145042866,-1064.0,0.0001654,2]
[403088696,1769145042875,-500.0,0.00016548,2]
[403088698,1769145042884,-270.36434811,0.00016559,2]
[403088700,1769145042893,-500.0,0.00016567,5]
[403088702,1769145042902,-384.83,0.0001658,2]
[403088704,1769145042911,-1064.0,0.00016585,2]
[403088706,1769145042920,-1064.0,0.000166,2]
[403088708,1769145042929,-500.0,0.00016602,2]
[403088710,1769145042938,-420.0,0.00016605,2]
[403088712,1769145042948,-1064.0,0.00016618,2]
[403088714,1769145042957,-613.3597068,0.00016621,2]
[403088717,1769145042966,-503.20313934,0.00016621,2]
[403088718,1769145042975,-1000.0,0.00016621,2]
[403088720,1769145042984,-1000.0,0.00016621,2]
[403088723,1769145042994,-500.0,0.00016622,5]
[403088724,1769145043003,-1064.0,0.00016629,2]
[403088727,1769145043012,-1680.0,0.00016633,2]
[403088728,1769145043022,-200.44,0.00016647,2]
[403088730,1769145043031,-500.0,0.00016657,2]
[403088732,1769145043041,-151.0,0.00016666,2]
[403088734,1769145043051,-151.0,0.00016666,2]
[403088737,1769145043060,-151.0,0.00016666,2]
[403088739,1769145043070,-360.471639,0.00016666,2]
[403088741,1769145043080,-360.471639,0.00016666,2]
[403088743,1769145043089,-644.255814,0.00016666,2]
[403088744,1769145043099,-360.471639,0.00016666,2]
[403088746,1769145043108,-644.255814,0.00016666,2]
[403088749,1769145043118,-360.471639,0.00016666,2]
[403088750,1769145043128,-644.255814,0.00016666,2]
[403088752,1769145043138,-644.255814,0.00016666,2]
[403088754,1769145043148,-151.0,0.00016666,2]
[403088756,1769145043157,-151.0,0.00016666,2]
[403088758,1769145043170,-282.275416,0.00016666,2]
[403088760,1769145043179,-3847.68989047,0.00016666,2]
[403088762,1769145043190,-155.095419,0.00016676,2]
[403088764,1769145043199,-500.0,0.00016676,5]
[403088766,1769145043209,-4976.0,0.00016691,2]
[403088768,1769145043218,-914.62,0.00016694,2]
[403088770,1769145043227,-1000.0,0.000167,2]
[403088772,1769145043237,-500.0,0.00016701,2]
[403088774,1769145043248,-1064.0,0.00016702,2]
[403088776,1769145043257,-597.96850436,0.00016703,2]
[403088778,1769145043266,-500.0,0.00016712,2]
[403088780,1769145043276,-1000.0,0.00016712,2]
[403088782,1769145043285,-1064.0,0.00016725,2]
[403088784,1769145043294,-500.0,0.00016731,5]
[403088786,1769145043304,-500.0,0.00016767,2]
[403088788,1769145043313,-4695.48318935,0.00016777,2]
[403088790,1769145043322,-3436.6510715,0.00016778,2]
[403088792,1769145043331,-500.0,0.00016786,5]
[403088794,1769145043340,-1064.0,0.00016788,2]
[403088796,1769145043349,-1000.0,0.000168,2]
[403088798,1769145043358,-1064.0,0.0001682,2]
[403088800,1769145043368,-500.0,0.00016822,2]
[403088802,1769145043377,-1064.0,0.00016834,2]
[403088804,1769145043386,-166.74169576,0.00016841,5]
[403088806,1769145043396,-503.6669669,0.00016876,2]
[403088808,1769145043405,-1000.0,0.000169,2]
[403088810,1769145043414,-1424.14242678,0.000169,2]
[403088812,1769145043423,-3393.16,0.00016922,2]
[403088814,1769145043431,-9999.99,0.00016922,2]
[403088816,1769145043440,-552.31,0.00016922,2]
[403088818,1769145043454,-3847.68989047,0.00016975,2]
[403088820,1769145043462,-587.0,0.00016981,2]
[403088822,1769145043472,-1000.0,0.00016986,2]
[403088824,1769145043480,-565.25,0.00017,2]
[403088827,1769145043490,-250.0,0.00017,2]
[403088829,1769145043502,-1000.0,0.00017,2]
[403088831,1769145043512,-270.36434811,0.00017006,2]
[403088833,1769145043522,-166.66,0.00017055,2]
[403088835,1769145043532,-4695.48318935,0.00017057,2]
[403088837,1769145043542,-1000.0,0.000171,2]
[403088839,1769145043552,-200.0,0.00017107,2]
[403088841,1769145043569,-374.03,0.00017112,2]
[403088843,1769145043578,-151.0,0.00017168,2]
[403088845,1769145043588,-151.0,0.00017168,2]
[403088847,1769145043597,-151.0,0.00017168,2]
[403088849,1769145043606,-360.471639,0.00017168,2]
[403088851,1769145043615,-360.471639,0.00017168,2]
[403088853,1769145043625,-644.255814,0.00017168,2]
[403088855,1769145043634,-360.471639,0.00017168,2]
[403088857,1769145043643,-644.255814,0.00017168,2]
[403088859,1769145043652,-360.471641,0.00017168,2]
[403088861,1769145043661,-644.255814,0.00017168,2]
[403088863,1769145043670,-644.2558166,0.00017168,2]
[403088865,1769145043679,-1059.06334883,0.00017168,2]
[403088868,1769145043688,-1008.07301906,0.00017168,2]
[403088870,1769145043697,-157.95,0.00017186,2]
[403088872,1769145043706,-1000.0,0.00017205,2]
[403088874,1769145043714,-151.0,0.0001726,2]
[403088876,1769145043723,-151.0,0.0001726,2]
[403088878,1769145043732,-1000.0,0.0001726,2]
[403088880,1769145043740,-150.0,0.0001726,2]
[403088882,1769145043750,-3847.68989047,0.00017283,2]
[403088884,1769145043759,-163.63,0.00017299,2]
[403088886,1769145043769,-1000.0,0.000173,2]
[403088888,1769145043778,-32000.0,0.000173,6]
[403088890,1769145043788,-4695.48318935,0.00017338,2]
[403088892,1769145043797,-200.0,0.00017366,2]
[403088894,1769145043806,-1000.0,0.000174,2]
[403088896,1769145043817,-42700.0,0.000174,6]
[403088898,1769145043826,-914.62,0.00017453,2]
[403088900,1769145043835,-270.36434811,0.00017453,2]
[403088902,1769145043844,-1687.0,0.000175,2]
[403088904,1769145043854,-53400.0,0.000175,6]
[403088906,1769145043863,-1000.0,0.00017534,2]
[403088908,1769145043872,-866.0,0.00017551,2]
[403088910,1769145043881,-197.64,0.00017571,2]
[403088912,1769145043890,-3847.68989047,0.00017592,2]
[403088914,1769145043899,-500.0,0.00017592,2]
[403088916,1769145043908,-136881.4137015,0.00017593,2]
[403088918,1769145043917,-200.0,0.00017597,2]
[403088920,1769145043926,-166.0,0.000176,2]
[403088922,1769145043934,-166.0,0.000176,2]
[403088924,1769145043944,-158.0,0.000176,2]
[403088926,1769145043953,-158.0,0.000176,2]
[403088928,1769145043963,-158.0,0.000176,2]
[403088930,1769145043972,-10600.0,0.000176,6]
[403088932,1769145043982,-4695.48318935,0.00017619,2]
[403088933,1769145043992,-4781.37656925,0.0001764,2]
[403088935,1769145044002,-166.66,0.00017681,2]
[403088937,1769145044011,-10600.0,0.000177,6]
[403088940,1769145044020,-374.03,0.00017709,2]
[403088942,1769145044030,-10600.0,0.000178,6]
[403088943,1769145044039,-500.0,0.00017808,2]
[403088945,1769145044050,-500.0,0.00017808,2]
[403088948,1769145044059,-1000.0,0.00017808,2]
[403088949,1769145044068,-250.0,0.00017808,2]
[403088951,1769145044078,-1000.0,0.00017842,2]
[403088953,1769145044087,-200.0,0.00017855,2]
[403088955,1769145044097,-200.0,0.00017856,2]
[403088957,1769145044107,-200.0,0.00017856,2]
[403088960,1769145044116,-200.0,0.00017863,2]
[403088962,1769145044125,-500.0,0.00017863,2]
[403088964,1769145044134,-500.0,0.00017863,2]
[403088965,1769145044143,-10000.0,0.000179,2]
[403088967,1769145044153,-255.33658603,0.000179,3]
[403088969,1769145044166,-4695.48318935,0.000179,2]
[403088971,1769145044176,-270.36434811,0.000179,2]
[403088973,1769145044185,-10600.0,0.000179,6]
[403088976,1769145044194,-3847.68989047,0.000179,2]
[403088978,1769145044203,-882.06278101,0.000179,2]
[403088980,1769145044213,-1495.17784509,0.000179,2]
[403088982,1769145044222,-1594.75681133,0.000179,2]
[403088983,1769145044231,-10077.8870319,0.000179,2]
[403088986,1769145044241,-500.0,0.000179,2]
[403088988,1769145044250,-151.25616091,0.00017918,2]
[403088990,1769145044260,-500.0,0.00017918,2]
[403088992,1769145044273,-500.0,0.00017972,2]
[403088994,1769145044282,-500.0,0.00017973,2]
[403088996,1769145044291,-150.0,0.00017973,2]
[403088998,1769145044300,-1000.0,0.00017983,2]
[403089000,1769145044309,-694.10450855,0.0001799,2]
[403089002,1769145044318,-694.10450855,0.0001799,2]
[403089004,1769145044327,-150.0,0.00017999,2]
[403089006,1769145044336,-150.0,0.00017999,2]
[403089008,1769145044345,-297.78142802,0.00017999,2]
[403089010,1769145044354,-300.0,0.00017999,2]
[403089012,1769145044363,-300.0,0.00017999,2]
[403089014,1769145044371,-666.0,0.00017999,2]
[403089016,1769145044380,-300.0,0.00017999,2]
[403089018,1769145044389,-417.84617864,0.00017999,2]
[403089020,1769145044398,-500.0,0.00017999,2]
[403089022,1769145044406,-500.0,0.00017999,2]
[403089024,1769145044416,-500.0,0.00017999,2]
[403089026,1769145044427,-500.0,0.00017999,2]
[403089028,1769145044436,-500.0,0.00017999,2]
[403089030,1769145044445,-341.67615774,0.00017999,2]
[403089032,1769145044453,-150.0,0.00017999,2]
[403089034,1769145044462,-150.0,0.00017999,2]
[403089036,1769145044471,-3746678.60151117,0.00018,2]
[403089038,1769145044480,-425790.05848894,0.00018,2]
[403089040,1769145044489,-12050.97224531,0.00018,2]
[403089042,1769145044499,-1811334.09235912,0.00018,2]
[403089043,1769145044512,-229.85,0.00018,2]
[403089045,1769145044521,-1202215.55432925,0.00018,2]
[403089048,1769145044539,-15941.23605073,0.00018,2]
[403089056,1769145044600,-979.75839964,0.00018,2]
[403089058,1769145044611,-720.11032749,0.00018,2]
[403089157,1769145045560,-1.7e-07,0.00018,2]
[403089250,1769145047431,-817.13700213,0.00015124,2]
[403089251,1769145047449,-182.86299787,0.00015124,2]
[403089252,1769145047458,-233.35500215,0.00015311,2]
[403089269,1769145135710,500.0,0.000176,30]
[403089270,1769145135760,500.0,0.000176,30]
[403089271,1769145135889,500.0,0.000176,30]
[403089272,1769145136332,330.67584511,0.000176,30]
[403089273,1769145136679,500.0,0.000176,30]
[403089274,1769145136787,500.0,0.000176,30]
[403089275,1769145136892,500.0,0.000176,30]
[403089276,1769145136962,500.0,0.000176,30]
[403089277,1769145137048,500.0,0.000176,30]
[403089278,1769145137163,500.0,0.000176,30]
[403089279,1769145137274,500.0,0.000176,30]
[403089280,1769145137435,935.31880376,0.00013,2]
[403089281,1769145137785,500.0,0.000176,30]
[403089282,1769145138262,500.0,0.000176,30]
[403089283,1769145138315,500.0,0.000176,30]
[403089284,1769145138737,500.0,0.000176,30]
[403089285,1769145138804,500.0,0.000176,30]
[403089286,1769145139318,500.0,0.000176,30]
[403089287,1769145139390,500.0,0.000176,30]
[403089288,1769145140118,500.0,0.000176,30]
[403089289,1769145140172,500.0,0.000176,30]
[403089290,1769145140381,500.0,0.000176,30]
[403089291,1769145140453,500.0,0.000176,30]
[403089292,1769145140799,500.0,0.00013,2]
[403089293,1769145141319,500.0,0.00013,2]
[403089295,1769145141845,500.0,0.00013,2]
[403089296,1769145142459,500.0,0.00013,2]
[403089297,1769145145651,500.0,0.000176,30]
[403089298,1769145146403,500.0,0.000176,30]
[403089301,1769145146893,500.0,0.000176,30]
[403089310,1769145147360,500.0,0.00013,2]
[403089311,1769145147821,121.82711823,0.00013,2]
[403089312,1769145147846,378.17288177,0.00013,2]
[403089313,1769145147942,500.0,0.00013,2]
[403089314,1769145148301,500.0,0.00013,2]
[403089315,1769145148443,500.0,0.00013,2]
[403089316,1769145148787,500.0,0.00013,2]
[403089317,1769145148936,500.0,0.00013,2]
[403089318,1769145149440,500.0,0.00013,2]
[403089319,1769145149789,500.0,0.00013,2]
[403089320,1769145149954,500.0,0.00013,2]
[403089321,1769145150761,500.0,0.00013,2]
[403089322,1769145150863,500.0,0.00013,2]
[403089323,1769145151286,500.0,0.00013,2]
[403089324,1769145151807,500.0,0.00013,2]
[403089325,1769145152259,500.0,0.00013,2]
[403089326,1769145152774,900.0,0.00013,2]
[403089362,1769145290179,-3466.9177,0.00015124,2]
[403089363,1769145290203,-300.0,0.00015222,2]
[403089364,1769145290226,-500.0,0.00015223,2]
[403089365,1769145290249,-500.0,0.00015223,2]
[403089366,1769145290272,-500.0,0.00015223,2]
[403089367,1769145290303,-500.0,0.00015223,2]
[403089368,1769145290327,-430.2472558,0.00015223,2]
[403089369,1769145290350,-266.64499785,0.00015311,2]
[403089370,1769145290373,-500.0,0.00015332,2]
[403089371,1769145290395,-245.6316244,0.00015498,2]
[403089372,1769145290418,-166.66,0.00016015,2]
[403089373,1769145290441,-166.66,0.00016352,2]
[403089374,1769145290464,-1000.0,0.00016438,2]
[403089375,1769145290487,-166.66,0.00016689,2]
[403089376,1769145290509,-1000.0,0.00016712,2]
[403089377,1769145290531,-300.0,0.00016842,2]
[403089378,1769145290553,-600.0,0.00016842,2]
[403089379,1769145290575,-445.10708926,0.00016842,2]
[403089380,1769145290598,-2500.0,0.00016842,2]
[403089381,1769145290619,-151.0,0.00016846,2]
[403089382,1769145290641,-166.66,0.00017026,2]
[403089383,1769145290664,-500.0,0.00017299,2]
[403089384,1769145290690,-166.66,0.00017363,2]
[403089385,1769145290713,-500.0,0.00017592,2]
[403089386,1769145290736,-2390.68828462,0.0001764,2]
[403089387,1769145290758,-166.66,0.00017701,2]
[403089388,1769145290780,-150.0,0.00017726,2]
[403089389,1769145290803,-1000.0,0.00017802,2]
[403089390,1769145290825,-265.0,0.00017864,2]
[403089391,1769145290850,-500.0,0.00017899,2]
[403089392,1769145290875,-500.0,0.00017899,2]
[403089393,1769145290903,-500.0,0.00017899,2]
[403089394,1769145290930,-500.0,0.00017899,2]
[403089395,1769145290954,-500.0,0.00017899,2]
[403089396,1769145290982,-404.8417747,0.00017899,2]
[403089397,1769145291006,-500.0,0.00017899,2]
[403089398,1769145291030,-500.0,0.00017899,2]
[403089399,1769145291055,-393.07810721,0.00017899,2]
[403089400,1769145291080,-500.0,0.00017899,2]
[403089401,1769145291106,-500.0,0.00017899,2]
[403089402,1769145291136,-500.0,0.00017899,2]
[403089403,1769145291161,-500.0,0.00017899,2]
[403089404,1769145291186,-500.0,0.00017899,2]
[403089405,1769145291211,-500.0,0.00017899,2]
[403089406,1769145291235,-500.0,0.00017899,2]
[403089407,1769145291259,-184.88316616,0.00017899,2]
[403089426,1769145365486,3216.87,0.00014129,2]
[403089569,1769145925021,1028.31734589,0.000108,2]
[403089574,1769145935225,5000.0,0.0001,2]
[403089581,1769145959250,754.82265411,8e-05,2]
[403089582,1769145959276,2743.66946908,8e-05,2]
[403089593,1769146012120,-225.59175686,0.00015373,2]
[403089601,1769146032452,3824.42660411,0.0001305,2]
[403089610,1769146068773,476.10981014,0.00014,2]
[403089670,1769146232225,-500.0,0.00015373,2]
[403089672,1769146232235,-1200.0,0.00015579,2]
[403089674,1769146232244,-1000.0,0.0001558,2]
[403089675,1769146232253,-1000.0,0.0001558,2]
[403089676,1769146232263,-1000.0,0.0001558,2]
[403089677,1769146232272,-151.41,0.0001588,2]
[403089678,1769146232281,-300.0,0.0001592,2]
[403089679,1769146232291,-180.0,0.0001592,2]
[403089680,1769146232300,-282.52698998,0.00015921,2]
[403089681,1769146232308,-151.41,0.00015968,2]
[403089682,1769146232318,-368.02,0.00015987,2]
[403089683,1769146232327,-151.41,0.00016056,2]
[403089684,1769146232336,-157.95,0.00016071,2]
[403089685,1769146232345,-613.3597068,0.00016073,2]
[403089686,1769146232354,-503.20313934,0.00016073,2]
[403089687,1769146232363,-500.0,0.00016073,2]
[403089688,1769146232372,-500.0,0.00016073,2]
[403089689,1769146232382,-151.41,0.00016144,2]
[403089690,1769146232391,-337.02519075,0.00016172,2]
[403089691,1769146232400,-151.41,0.00016232,2]
[403089692,1769146232410,-201.0,0.00016274,2]
[403089693,1769146232419,-151.41,0.00016321,2]
[403089694,1769146232429,-150.33,0.00016343,2]
[403089695,1769146232438,-151.41,0.00016409,2]
[403089696,1769146232447,-151.41,0.00016497,2]
[403089697,1769146232457,-151.41,0.00016585,2]
[403089698,1769146232466,-368.02,0.00016587,2]
[403089699,1769146232476,-158.11,0.00016596,2]
[403089700,1769146232485,-166.66,0.00016619,2]
[403089701,1769146232494,-1000.0,0.00016621,2]
[403089702,1769146232504,-1000.0,0.00016621,2]
[403089703,1769146232515,-152.48949483,0.00016666,2]
[403089704,1769146232524,-550.0,0.00016666,2]
[403089705,1769146232533,-6720.01160228,0.00016666,2]
[403089706,1769146232545,-7282.46985046,0.00016666,2]
[403089707,1769146232557,-2607.63269489,0.00016666,2]
[403089708,1769146232568,-987.4479749,0.00016666,2]
[403089709,1769146232579,-445.96440231,0.00016666,2]
[403089712,1769146232590,-883.38406312,0.00016666,2]
[403089714,1769146232603,-1073.10941204,0.00016666,2]
[403089716,1769146232616,-151.41,0.00016674,2]
[403089718,1769146232625,-200.0,0.00016745,2]
[403089719,1769146232634,-250.0,0.00016756,2]
[403089720,1769146232644,-250.0,0.00016756,2]
[403089721,1769146232654,-250.0,0.00016756,2]
[403089722,1769146232663,-500.0,0.00016756,2]
[403089724,1769146232672,-380.61330369,0.00016756,2]
[403089726,1769146232685,-119.38669631,0.00016756,2]
[403089728,1769146232694,-151.0,0.00016756,2]
[403089730,1769146232704,-151.0,0.00016756,2]
[403089732,1769146232713,-151.0,0.00016756,2]
[403089734,1769146232722,-151.0,0.00016756,2]
[403089735,1769146232731,-151.0,0.00016756,2]
[403089736,1769146232741,-3210.0,0.00016756,2]
[403089737,1769146232750,-151.0,0.00016756,2]
[403089738,1769146232759,-151.0,0.00016756,2]
[403089739,1769146232769,-151.0,0.00016756,2]
[403089740,1769146232778,-151.0,0.00016756,2]
[403089741,1769146232788,-151.0,0.00016756,2]
[403089742,1769146232797,-151.0,0.00016756,2]
[403089743,1769146232807,-500.0,0.00016765,2]
[403089744,1769146232816,-294.57928753,0.00016765,2]
[403089745,1769146232827,-205.42071247,0.00016765,2]
[403089746,1769146232836,-311.35940585,0.00016765,2]
[403089747,1769146232847,-188.64059415,0.00016765,2]
[403089748,1769146232856,-500.0,0.00016765,2]
[403089749,1769146232866,-350.36608166,0.00016765,2]
[403089750,1769146232877,-149.63391834,0.00016765,2]
[403089751,1769146232886,-315.38726079,0.00016765,2]
[403089752,1769146232896,-500.0,0.00016765,2]
[403089753,1769146232906,-320.98737357,0.00016765,2]
[403089754,1769146232975,-179.01262643,0.00016765,2]
[403089755,1769146232985,-500.0,0.00016765,2]
[403089756,1769146232994,-500.0,0.00016765,2]
[403089757,1769146233004,-116.20725525,0.00016765,2]
[403089758,1769146233015,-383.79274475,0.00016765,2]
[403089759,1769146233025,-500.0,0.00016765,2]
[403089760,1769146233034,-500.0,0.00016765,2]
[403089761,1769146233044,-500.0,0.00016765,2]
[403089762,1769146233053,-500.0,0.00016765,2]
[403089763,1769146233062,-500.0,0.00016765,2]
[403089764,1769146233072,-500.0,0.00016765,2]
[403089765,1769146233082,-500.0,0.00016765,2]
[403089766,1769146233091,-500.0,0.00016765,2]
[403089767,1769146233101,-500.0,0.00016765,2]
[403089768,1769146233110,-500.0,0.00016765,2]
[403089769,1769146233119,-500.0,0.00016765,2]
[403089770,1769146233128,-500.0,0.00016765,2]
[403089771,1769146233139,-222.91296118,0.00016765,2]
[403089772,1769146233149,-500.0,0.00016765,2]
[403089773,1769146233158,-46.93428716,0.00016765,2]
[403089774,1769146233170,-453.06571284,0.00016765,2]
[403089775,1769146233179,-200.75641418,0.00016765,2]
[403089776,1769146233191,-299.24358582,0.00016765,2]
[403089777,1769146233200,-22.31623653,0.00016765,2]
[403089778,1769146233219,-477.68376347,0.00016765,2]
[403089779,1769146233228,-423.93191786,0.00016765,2]
[403089780,1769146233237,-368.92240469,0.00016765,2]
[403089781,1769146233247,-166.10401124,0.00016765,2]
[403089782,1769146233256,-162.17776608,0.00016765,2]
[403089783,1769146233267,-500.0,0.00016765,2]
[403089784,1769146233275,-500.0,0.00016765,2]
[403089785,1769146233284,-601.18414408,0.00016765,2]
[403089786,1769146233293,-82178.59880394,0.00016766,2]
[403089787,1769146233305,-347.43508066,0.00016766,2]
[403089788,1769146233315,-306.51820373,0.00016766,2]
[403089789,1769146233341,-1282.96154557,0.00016766,2]
[403089790,1769146233353,-1407.00725734,0.00016766,2]
[403089791,1769146233365,-1427.00894998,0.00016766,2]
[403089792,1769146233377,-736.07642552,0.00016766,2]
[403089793,1769146233392,-682.15500896,0.00016766,2]
[403089796,1769146238376,-433.34575124,0.00016766,2]
[403089797,1769146238389,-414.75996679,0.00016766,2]
[403089798,1769146238401,-545.6022041,0.00016766,2]
[403089799,1769146238413,-1573.24771335,0.00016766,2]
[403089800,1769146238442,-924.24806815,0.00016766,2]
[403089801,1769146238453,-13405.85580755,0.00016766,2]
[403089802,1769146238465,-1868.81190752,0.00016766,2]
[403089803,1769146238475,-18839.67122192,0.00016766,2]
[403089804,1769146238495,-449.3404125,0.00016766,2]
[403089805,1769146238507,-550.6595875,0.00016766,2]
[403089839,1769146240448,-87693.96147238,0.00016766,2]
[403089840,1769146240457,-3273.6648937,0.00016766,2]
[403089841,1769146240467,-161.0,0.000169,2]
[403089842,1769146240487,-1424.14242678,0.000169,2]
[403089843,1769146240498,-250.0,0.0001691,2]
[403089844,1769146240508,-250.0,0.00017,2]
[403089845,1769146240519,-9200.0,0.000171,6]
[403089846,1769146240530,-277.20668162,0.0001712,2]
[403089847,1769146240539,-1680.0,0.00017126,2]
[403089848,1769146240549,-1249.98,0.00017157,2]
[403089849,1769146240559,-166.66,0.00017168,2]
[403089850,1769146240569,-559.06334883,0.00017168,2]
[403089851,1769146240579,-508.07301906,0.00017168,2]
[403089852,1769146240588,-368.02,0.00017186,2]
[403089853,1769146240598,-18500.0,0.000172,6]
[403089854,1769146240608,-150.0,0.0001726,2]
[403089855,1769146240620,-3637.50869999,0.00017289,2]
[403089856,1769146240629,-27800.0,0.000173,6]
[403089857,1769146240768,-4516.57033593,0.00017307,2]
[403089858,1769146240779,-4516.57033588,0.00017373,2]
[403089859,1769146240789,-200.0,0.00017383,2]
[403089860,1769146240802,-1249.98,0.0001739,2]
[403089861,1769146240812,-163.46,0.000174,2]
[403089862,1769146240823,-37100.0,0.000174,6]
[403089863,1769146240833,-246.0,0.00017407,2]
[403089864,1769146240843,-157.95,0.0001741,2]
[403089865,1769146240854,-3637.50869999,0.00017411,2]
[403089866,1769146240863,-329.0,0.00017431,2]
[403089867,1769146240872,-4516.57033588,0.00017439,2]
[403089868,1769146240882,-500.0,0.00017452,2]
[403089869,1769146240892,-500.0,0.00017452,2]
[403089870,1769146240902,-200.0,0.00017478,2]
[403089871,1769146240911,-1249.98,0.0001749,2]
[403089872,1769146240921,-975.572,0.000175,2]
[403089873,1769146240930,-189.805,0.000175,2]
[403089874,1769146240939,-46400.0,0.000175,6]
[403089875,1769146240948,-4516.57033588,0.00017505,2]
[403089876,1769146240957,-500.0,0.00017507,2]
[403089877,1769146240966,-500.0,0.00017507,2]
[403089878,1769146240975,-3637.50869999,0.00017533,2]
[403089879,1769146240984,-1000.0,0.00017534,2]
[403089880,1769146240997,-8940.29801755,0.00017541,2]
[403089881,1769146241007,-500.0,0.00017562,2]
[403089882,1769146241016,-500.0,0.00017562,2]
[403089883,1769146241026,-4516.57033588,0.00017571,2]
[403089884,1769146241035,-329.0,0.00017592,2]
[403089885,1769146241044,-307.81,0.00017599,2]
[403089886,1769146241053,-9200.0,0.000176,6]
[403089887,1769146241062,-200.0,0.00017614,2]
[403089888,1769146241071,-500.0,0.00017616,2]
[403089889,1769146241080,-500.0,0.00017616,2]
[403089890,1769146241089,-4516.57033588,0.00017636,2]
[403089891,1769146241098,-329.0,0.00017638,2]
[403089892,1769146241107,-3586.03242694,0.0001764,2]
[403089893,1769146241117,-3637.50869999,0.00017656,2]
[403089894,1769146241126,-500.0,0.00017671,2]
[403089895,1769146241135,-500.0,0.00017671,2]
[403089896,1769146241144,-329.0,0.00017679,2]
[403089897,1769146241153,-2934.67699337,0.00017686,2]
[403089898,1769146241162,-1249.98,0.00017692,2]
[403089899,1769146241172,-9200.0,0.000177,6]
[403089900,1769146241181,-4516.57033588,0.00017702,2]
[403089901,1769146241194,-166.66,0.00017716,2]
[403089902,1769146241203,-2934.67699334,0.00017717,2]
[403089903,1769146241212,-500.0,0.00017726,2]
[403089904,1769146241222,-500.0,0.00017726,2]
[403089905,1769146241231,-2934.67699334,0.00017747,2]
[403089906,1769146241241,-4516.57033588,0.00017768,2]
[403089907,1769146241250,-2934.67699334,0.00017778,2]
[403089908,1769146241260,-3637.50869999,0.00017778,2]
[403089909,1769146241270,-166.74169576,0.00017781,2]
[403089910,1769146241279,-503.6669669,0.00017781,2]
[403089911,1769146241288,-935.0,0.00017783,2]
[403089912,1769146241299,-368.02,0.00017786,2]
[403089913,1769146241309,-161.0,0.000178,2]
[403089914,1769146241319,-162.21860889,0.000178,2]
[403089915,1769146241329,-1057.1820192,0.000178,2]
[403089916,1769146241338,-9200.0,0.000178,6]
[403089917,1769146241348,-500.0,0.00017808,2]
[403089918,1769146241357,-500.0,0.00017808,2]